bitfinex/quotes_BTCUSD_20250515
["timestamp","ask_amount","ask_price","bid_price","bid_amount"]
[1747275188041,0.22583636,103070.0,103060.0,0.35854085]
[1747275188537,0.22583636,103070.0,103060.0,0.36154085]
[1747275188927,0.22464892,103070.0,103060.0,0.36154085]
[1747275189329,0.22464892,103070.0,103060.0,0.35754085]
[1747275189535,0.22227047,103070.0,103060.0,0.01754085]
[1747275189769,0.22227047,103070.0,103060.0,0.01954085]
[1747275190141,0.21751355,103070.0,103060.0,0.01954085]
[1747275190346,0.21751355,103070.0,103060.0,0.02054085]
[1747275191188,0.21751355,103070.0,103060.0,0.01754085]
[1747275191324,0.21751355,103070.0,103060.0,0.01954085]
[1747275193466,0.31482295,103070.0,103060.0,0.01954085]
[1747275193667,0.31482295,103070.0,103060.0,0.005]
[1747275195842,0.59052233,103070.0,103060.0,0.005]
[1747275196745,0.31482295,103070.0,103060.0,0.002]
[1747275196973,0.59052233,103070.0,103060.0,0.002]
[1747275197165,0.2365646,103060.0,103050.0,0.01454085]
[1747275198345,0.2365646,103060.0,103050.0,0.01654085]
[1747275199420,0.2365646,103060.0,103050.0,0.01754085]
[1747275201971,0.333874,103060.0,103050.0,0.01754085]
[1747275202934,0.333874,103060.0,103050.0,0.003]
[1747275204201,0.333874,103060.0,103050.0,0.002]
[1747275204458,0.21348811,103050.0,103040.0,0.01454085]
[1747275206089,0.21348811,103050.0,103040.0,0.01554085]
[1747275206763,0.21348811,103050.0,103040.0,0.01754085]
[1747275208125,0.21348811,103050.0,103040.0,0.04944085]
[1747275208632,0.21348811,103050.0,103040.0,0.01754085]
[1747275213898,0.21348811,103050.0,103040.0,0.7985454]
[1747275213899,0.00970346,103050.0,103040.0,0.7985454]
[1747275214100,0.2037646,103060.0,103050.0,0.56319176]
[1747275214101,0.01940494,103060.0,103050.0,0.56319176]
[1747275214303,0.02910765,103060.0,103050.0,0.60419512]
[1747275214509,0.00970233,103060.0,103050.0,0.60419512]
[1747275214725,0.20521736,103070.0,103060.0,0.24380863]
[1747275215160,0.20521736,103070.0,103060.0,0.26321432]
[1747275215567,0.20521736,103070.0,103060.0,0.27291702]
[1747275215781,0.21344669,103070.0,103060.0,0.27291702]
[1747275216201,0.00970148,103070.0,103060.0,0.27821281]
[1747275216409,0.01940315,103070.0,103060.0,0.82213281]
[1747275216613,0.00970148,103070.0,103060.0,0.82213281]
[1747275216825,0.02910491,103070.0,103060.0,0.82213281]
[1747275217026,0.02910491,103070.0,103060.0,1.02629281]
[1747275217850,0.22312727,103080.0,103070.0,0.21994493]
[1747275218063,0.22312727,103080.0,103070.0,0.20374493]
[1747275218253,0.21342635,103080.0,103070.0,0.20374493]
[1747275219085,0.01940192,103080.0,103070.0,0.24895012]
[1747275219294,0.02910312,103080.0,103070.0,0.26435012]
[1747275219719,0.02910312,103080.0,103070.0,0.26535012]
[1747275220182,0.30356777,103100.0,103090.0,0.01454085]
[1747275220383,0.40087717,103100.0,103090.0,0.01454085]
[1747275221790,0.40087717,103100.0,103090.0,0.02444426]
[1747275221973,0.40287717,103100.0,103090.0,0.02444426]
[1747275223371,0.32552643,103100.0,103090.0,0.02444426]
[1747275224240,0.30942643,103100.0,103090.0,0.02444426]
[1747275224469,0.19601703,103100.0,103090.0,0.02444426]
[1747275226662,0.19601703,103100.0,103090.0,0.03964426]
[1747275227048,0.19601703,103100.0,103090.0,0.05574426]
[1747275228955,0.002,103100.0,103090.0,0.25944975]
[1747275229121,0.002,103100.0,103090.0,0.61884941]
[1747275229122,0.21538421,103100.0,103090.0,0.61884941]
[1747275229341,0.22508334,103100.0,103090.0,0.60914972]
[1747275229477,0.21538449,103100.0,103090.0,0.60914972]
[1747275231257,0.21338449,103100.0,103090.0,0.60914972]
[1747275232959,0.21338449,103100.0,103090.0,1.02024972]
[1747275234221,0.0193976,103100.0,103090.0,1.0396492]
[1747275234755,0.03879605,103100.0,103090.0,1.0396492]
[1747275235684,0.00969847,103100.0,103090.0,1.02994847]
[1747275235889,0.01939722,103100.0,103090.0,1.02994847]
[1747275236077,0.01930022,103100.0,103090.0,1.02994847]
[1747275236761,0.02899888,103100.0,103090.0,1.02994847]
[1747275236977,0.02899878,103100.0,103090.0,1.02994847]
[1747275237191,0.2133844,103100.0,103090.0,1.18246426]
[1747275237440,0.20368555,103100.0,103090.0,0.77554426]
[1747275237681,0.23388555,103100.0,103090.0,0.43554426]
[1747275237911,0.23388555,103100.0,103090.0,0.42100341]
[1747275238129,0.23388555,103100.0,103090.0,0.43554426]
[1747275239248,0.23388555,103100.0,103090.0,0.02444426]
[1747275241954,0.40854569,103100.0,103090.0,0.02444426]
[1747275242154,0.00970214,103070.0,103060.0,0.36173573]
[1747275242360,0.20374502,103070.0,103060.0,0.23292633]
[1747275242563,0.20374502,103070.0,103060.0,0.20381933]
[1747275242792,0.20374502,103070.0,103060.0,0.55836018]
[1747275242989,0.21944502,103070.0,103060.0,0.00033933]
[1747275243193,0.21944502,103070.0,103060.0,0.01488018]
[1747275243435,0.21944502,103070.0,103060.0,0.00033933]
[1747275243637,0.23524502,103070.0,103060.0,0.01400205]
[1747275243778,0.23524502,103070.0,103060.0,0.3685429]
[1747275244007,0.23524502,103070.0,103060.0,0.36288018]
[1747275244180,0.21944502,103070.0,103060.0,0.00833933]
[1747275244418,0.21944502,103070.0,103060.0,0.02288018]
[1747275244608,0.21944502,103070.0,103060.0,0.01888018]
[1747275244842,0.23474502,103070.0,103060.0,0.01488018]
[1747275247233,0.23474502,103070.0,103060.0,0.02451473]
[1747275251643,0.21944502,103070.0,103060.0,0.02451473]
[1747275253311,0.20374502,103070.0,103060.0,0.02451473]
[1747275253529,0.20374502,103070.0,103060.0,0.21857644]
[1747275253739,0.20374502,103070.0,103060.0,0.02451473]
[1747275255256,0.20374502,103070.0,103060.0,0.03421781]
[1747275258590,0.20374502,103070.0,103060.0,0.02451473]
[1747275260583,0.01940343,103070.0,103060.0,0.2899277]
[1747275260797,0.22314845,103070.0,103060.0,0.06481781]
[1747275261008,0.22314845,103070.0,103060.0,0.28022532]
[1747275261217,0.22314845,103070.0,103060.0,0.26858232]
[1747275261441,0.22314845,103070.0,103060.0,0.25887924]
[1747275261676,0.22314845,103070.0,103060.0,0.25887952]
[1747275261905,0.22314845,103070.0,103060.0,0.26858232]
[1747275262107,0.22314845,103070.0,103060.0,0.06481781]
[1747275262315,0.22314845,103070.0,103060.0,0.0591208]
[1747275262799,0.22314845,103070.0,103060.0,0.25318251]
[1747275263026,0.24544688,103070.0,103060.0,0.02451473]
[1747275265256,0.34275628,103070.0,103060.0,0.00997388]
[1747275277959,0.34275628,103070.0,103060.0,0.00033933]
[1747275285125,0.74998939,103070.0,103060.0,0.00033933]
[1747275286610,0.68275628,103070.0,103060.0,0.00033933]
[1747275287164,1.08795628,103070.0,103060.0,0.00033933]
[1747275290856,1.14615628,103070.0,103060.0,0.00033933]
[1747275294565,0.74095628,103070.0,103060.0,0.00033933]
[1747275294809,1.14523628,103070.0,103060.0,0.00033933]
[1747275295740,1.19809867,103070.0,103060.0,0.00033933]
[1747275300465,1.14523628,103070.0,103060.0,0.00033933]
[1747275301591,1.15523628,103070.0,103060.0,0.00033933]
[1747275301831,1.26723628,103070.0,103060.0,0.00033933]
[1747275302051,1.24723628,103070.0,103060.0,0.00033933]
[1747275302271,1.14523628,103070.0,103060.0,0.00033933]
[1747275302509,1.26949901,103070.0,103060.0,0.00033933]
[1747275303183,2.06593986,103070.0,103060.0,0.00033933]
[1747275303404,1.41995849,103070.0,103060.0,0.00033933]
[1747275303623,1.41975849,103070.0,103060.0,0.00033933]
[1747275306248,1.42075849,103070.0,103060.0,0.00033933]
[1747275306908,1.42675849,103070.0,103060.0,0.00033933]
[1747275309364,1.39383986,103070.0,103060.0,0.00033933]
[1747275310556,0.87321901,103070.0,103060.0,0.00033933]
[1747275310772,1.25026568,103070.0,103060.0,0.00033933]
[1747275311219,1.26480653,103070.0,103060.0,0.00033933]
[1747275311441,0.2135501,103020.0,103010.0,0.0306]
[1747275311660,0.21357101,103010.0,103000.0,0.0583542]
[1747275311888,0.31088041,103010.0,103000.0,0.05883781]
[1747275313855,0.31088041,103010.0,103000.0,0.06083781]
[1747275314763,0.31088041,103010.0,103000.0,0.06263781]
[1747275320117,0.31088041,103010.0,103000.0,0.04603781]
[1747275320322,0.31088041,103010.0,103000.0,0.03083781]
[1747275322605,0.40324372,103010.0,103000.0,0.03083781]
[1747275322856,0.31088041,103010.0,103000.0,0.03083781]
[1747275323674,0.31088041,103010.0,103000.0,0.02883781]
[1747275323884,0.31088041,103010.0,103000.0,0.03083781]
[1747275327223,0.51236041,103010.0,103000.0,0.03083781]
[1747275327944,0.51236041,103010.0,103000.0,0.04743781]
[1747275328146,0.71380041,103010.0,103000.0,0.04743781]
[1747275328558,0.31088041,103010.0,103000.0,0.04743781]
[1747275328767,0.71380041,103010.0,103000.0,0.04743781]
[1747275329815,0.81110981,103010.0,103000.0,0.04743781]
[1747275330034,0.81110981,103010.0,103000.0,0.03083781]
[1747275330035,0.84130981,103010.0,103000.0,0.03083781]
[1747275331581,0.89950981,103010.0,103000.0,0.03083781]
[1747275331800,0.84130981,103010.0,103000.0,0.03083781]
[1747275335891,0.84114981,103010.0,103000.0,0.03083781]
[1747275337120,0.43838981,103010.0,103000.0,0.03083781]
[1747275337334,0.81090981,103010.0,103000.0,0.03083781]
[1747275337563,0.82630981,103010.0,103000.0,0.03083781]
[1747275337777,1.24100981,103010.0,103000.0,0.03083781]
[1747275338026,1.26100981,103010.0,103000.0,0.03083781]
[1747275338268,1.28796673,103010.0,103000.0,0.03083781]
[1747275338696,1.28796673,103010.0,103000.0,0.02883781]
[1747275338919,1.28996673,103010.0,103000.0,0.02883781]
[1747275339129,1.29196673,103010.0,103000.0,0.02883781]
[1747275340450,1.26500981,103010.0,103000.0,0.02883781]
[1747275341041,1.94490981,103010.0,103000.0,0.02883781]
[1747275347040,1.93490981,103010.0,103000.0,0.02883781]
[1747275347280,1.9618297,103010.0,103000.0,0.02883781]
[1747275347487,1.9518297,103010.0,103000.0,0.02883781]
[1747275347703,2.0538297,103010.0,103000.0,0.02883781]
[1747275348376,0.41558329,103000.0,102990.0,0.01007916]
[1747275348581,1.02960209,103000.0,102990.0,0.0102242]
[1747275349040,1.01960209,103000.0,102990.0,0.0102242]
[1747275349659,1.02060209,103000.0,102990.0,0.0102242]
[1747275351211,1.02160209,103000.0,102990.0,0.0102242]
[1747275352351,1.35160209,103000.0,102990.0,0.0102242]
[1747275352962,2.03150209,103000.0,102990.0,0.0102242]
[1747275356562,2.43318209,103000.0,102990.0,0.0102242]
[1747275362837,0.7543031,102990.0,102980.0,0.0154201]
[1747275363050,1.61860453,102990.0,102980.0,0.01556099]
[1747275364110,1.62060453,102990.0,102980.0,0.01556099]
[1747275364311,1.62260453,102990.0,102980.0,0.01556099]
[1747275365177,1.5991525,102990.0,102980.0,0.01556099]
[1747275365399,1.4033125,102990.0,102980.0,0.01556099]
[1747275365609,1.8047925,102990.0,102980.0,0.01556099]
[1747275366270,0.3052125,102990.0,102980.0,0.04706099]
[1747275366485,0.5060525,102990.0,102980.0,0.04706099]
[1747275366702,1.1439619,102990.0,102980.0,0.04706099]
[1747275367132,0.7066525,102990.0,102980.0,0.04706099]
[1747275367368,0.3052125,102990.0,102980.0,0.04706099]
[1747275367587,0.7066525,102990.0,102980.0,0.04706099]
[1747275367815,0.5060525,102990.0,102980.0,0.04706099]
[1747275368201,0.3052125,102990.0,102980.0,0.04706099]
[1747275368990,0.3032125,102990.0,102980.0,0.04706099]
[1747275369198,0.3012125,102990.0,102980.0,0.04706099]
[1747275370583,0.5020525,102990.0,102980.0,0.04706099]
[1747275371515,0.5993619,102990.0,102980.0,0.04706099]
[1747275372284,0.5020525,102990.0,102980.0,0.04706099]
[1747275376835,0.77863721,102990.0,102980.0,0.04706099]
[1747275377899,0.5020525,102990.0,102980.0,0.04706099]
[1747275380245,0.3012125,102990.0,102980.0,0.04706099]
[1747275391799,0.3594125,102990.0,102980.0,0.04706099]
[1747275396767,0.3012125,102990.0,102980.0,0.04706099]
[1747275397472,0.67510661,102990.0,102980.0,0.01556099]
[1747275398171,0.69020661,102990.0,102980.0,0.01556099]
[1747275398434,0.70620661,102990.0,102980.0,0.01556099]
[1747275398667,0.76440661,102990.0,102980.0,0.01556099]
[1747275399374,0.63599721,102990.0,102980.0,0.01556099]
[1747275399602,0.3594125,102990.0,102980.0,0.01556099]
[1747275399828,0.63599721,102990.0,102980.0,0.01556099]
[1747275400699,0.3746125,102990.0,102980.0,0.01556099]
[1747275400922,0.63599721,102990.0,102980.0,0.01556099]
[1747275401595,0.57779721,102990.0,102980.0,0.01556099]
[1747275402901,0.67510661,102990.0,102980.0,0.01556099]
[1747275403114,0.69080661,102990.0,102980.0,0.01556099]
[1747275403558,0.70710661,102990.0,102980.0,0.01556099]
[1747275408027,0.4305219,102990.0,102980.0,0.01556099]
[1747275408260,0.70710661,102990.0,102980.0,0.01556099]
[1747275408469,0.3012125,102990.0,102980.0,0.01556099]
[1747275409305,0.7011325,102990.0,102980.0,0.01556099]
[1747275409520,0.3012125,102990.0,102980.0,0.01556099]
[1747275409702,0.7011325,102990.0,102980.0,0.01556099]
[1747275410136,0.5013725,102990.0,102980.0,0.03076099]
[1747275410357,0.7011325,102990.0,102980.0,0.04686099]
[1747275411129,0.5013725,102990.0,102980.0,0.04686099]
[1747275411338,0.3012125,102990.0,102980.0,0.04686099]
[1747275424566,0.3012125,102990.0,102980.0,0.01556099]
[1747275425041,0.3012125,102990.0,102980.0,0.03116099]
[1747275425707,0.57779721,102990.0,102980.0,0.01556099]
[1747275425936,0.70690661,102990.0,102980.0,0.01556099]
[1747275426169,0.60959721,102990.0,102980.0,0.01556099]
[1747275427088,0.80903721,102990.0,102980.0,0.01556099]
[1747275429689,0.5324525,102990.0,102980.0,0.01556099]
[1747275429910,0.80903721,102990.0,102980.0,0.01556099]
[1747275430144,0.87033329,102990.0,102980.0,0.01556099]
[1747275434730,0.80903721,102990.0,102980.0,0.01556099]
[1747275438167,1.14903721,102990.0,102980.0,0.01556099]
[1747275438387,1.42562192,102990.0,102980.0,0.01556099]
[1747275438612,1.43562192,102990.0,102980.0,0.01556099]
[1747275439520,1.15903721,102990.0,102980.0,0.01556099]
[1747275439768,1.25634661,102990.0,102980.0,0.01556099]
[1747275439996,1.53293132,102990.0,102980.0,0.01556099]
[1747275440235,1.24634661,102990.0,102980.0,0.01556099]
[1747275440683,1.14903721,102990.0,102980.0,0.01556099]
[1747275442051,0.6730125,102990.0,102980.0,0.01556099]
[1747275442275,1.0400525,102990.0,102980.0,0.01556099]
[1747275443175,0.6412125,102990.0,102980.0,0.03116099]
[1747275443386,0.8408125,102990.0,102980.0,0.04676099]
[1747275443786,0.6412125,102990.0,102980.0,0.04676099]
[1747275443920,0.8408125,102990.0,102980.0,0.04676099]
[1747275444558,0.9381219,102990.0,102980.0,0.03116099]
[1747275446185,0.8408125,102990.0,102980.0,0.03116099]
[1747275448157,0.8408125,102990.0,102980.0,0.01556099]
[1747275448379,1.11739721,102990.0,102980.0,0.01556099]
[1747275450201,0.8408125,102990.0,102980.0,0.01556099]
[1747275451756,0.8990125,102990.0,102980.0,0.01556099]
[1747275452552,1.20611725,102990.0,102980.0,0.01556099]
[1747275453032,1.17507721,102990.0,102980.0,0.01556099]
[1747275456157,0.8984925,102990.0,102980.0,0.01556099]
[1747275456375,1.17507721,102990.0,102980.0,0.01556099]
[1747275456834,0.97599721,102990.0,102980.0,0.01556099]
[1747275457050,1.17507721,102990.0,102980.0,0.01556099]
[1747275459526,1.08000532,102990.0,102980.0,0.01556099]
[1747275459984,1.17731472,102990.0,102980.0,0.01556099]
[1747275460704,1.08000532,102990.0,102980.0,0.01556099]
[1747275461333,0.88092532,102990.0,102980.0,0.01556099]
[1747275461544,0.8984925,102990.0,102980.0,0.04736099]
[1747275461758,0.6994125,102990.0,102980.0,0.04736099]
[1747275462180,0.6994125,102990.0,102980.0,0.03206099]
[1747275462609,0.88092532,102990.0,102980.0,0.03206099]
[1747275463247,0.6994125,102990.0,102980.0,0.03206099]
[1747275463460,0.88092532,102990.0,102980.0,0.03206099]
[1747275464684,0.6994125,102990.0,102980.0,0.03206099]
[1747275465117,0.6994125,102990.0,102980.0,0.01556099]
[1747275466112,0.8984925,102990.0,102980.0,0.01556099]
[1747275468584,0.8984925,102990.0,102980.0,0.03146099]
[1747275470444,0.8984925,102990.0,102980.0,0.01556099]
[1747275471419,0.5002925,102990.0,102980.0,0.03066099]
[1747275471639,0.5002925,102990.0,102980.0,0.04576099]
[1747275472278,0.3012125,102990.0,102980.0,0.04576099]
[1747275480958,0.2039031,102990.0,102980.0,0.06030184]
[1747275483162,0.2039031,102990.0,102980.0,0.27587732]
[1747275483163,0.21361249,102990.0,102980.0,0.27587732]
[1747275483424,0.2039031,102990.0,102980.0,0.26422492]
[1747275484282,0.2039031,102990.0,102980.0,0.26622492]
[1747275484461,0.19419361,102990.0,102980.0,0.07201246]
[1747275484925,0.19419361,102990.0,102980.0,0.07401246]
[1747275485783,0.19419361,102990.0,102980.0,0.07401236]
[1747275486043,0.19419361,102990.0,102980.0,0.27793525]
[1747275486275,0.19419361,102990.0,102980.0,0.26822482]
[1747275486490,0.19419361,102990.0,102980.0,0.2585143]
[1747275487368,0.19419361,102990.0,102980.0,0.26822492]
[1747275487487,0.19419361,102990.0,102980.0,0.07401246]
[1747275488114,0.19419361,102990.0,102980.0,0.06430184]
[1747275501496,0.19419361,102990.0,102980.0,0.04920184]
[1747275503109,0.29150301,102990.0,102980.0,0.03410184]
[1747275503310,0.30760301,102990.0,102980.0,0.01956099]
[1747275504136,0.29150301,102990.0,102980.0,0.01956099]
[1747275510457,0.29150301,102990.0,102980.0,0.03456099]
[1747275512000,0.29150301,102990.0,102980.0,0.04986099]
[1747275512634,0.29150301,102990.0,102980.0,0.06440184]
[1747275513110,0.19419361,102990.0,102980.0,0.06440184]
[1747275513496,0.21361268,102990.0,102980.0,0.27803544]
[1747275513707,0.21361268,102990.0,102980.0,0.29745602]
[1747275513918,0.19417475,103000.0,102990.0,0.24315353]
[1747275514169,0.19417475,103000.0,102990.0,0.04584085]
[1747275515976,0.19417475,103000.0,102990.0,0.24003446]
[1747275516178,0.19417475,103000.0,102990.0,0.25945315]
[1747275516882,0.19417475,103000.0,102990.0,0.59945334]
[1747275516883,0.19517475,103000.0,102990.0,0.59945334]
[1747275517310,0.19417475,103000.0,102990.0,0.59945334]
[1747275517513,0.19417475,103000.0,102990.0,0.61016264]
[1747275518258,0.19417475,103000.0,102990.0,0.61216264]
[1747275518477,0.1941559,103010.0,103000.0,0.2250156]
[1747275518685,0.21357101,103010.0,103000.0,0.59943269]
[1747275518902,0.23298593,103010.0,103000.0,0.60914095]
[1747275519125,0.2232788,103010.0,103000.0,0.59943269]
[1747275519564,0.21357139,103010.0,103000.0,0.59943269]
[1747275519769,0.21357139,103010.0,103000.0,0.60143269]
[1747275520222,0.20386369,103010.0,103000.0,0.38784085]
[1747275520472,0.1941559,103010.0,103000.0,0.38784085]
[1747275520864,0.1941559,103010.0,103000.0,0.38884085]
[1747275522665,0.1941559,103010.0,103000.0,0.37384085]
[1747275524384,0.1941559,103010.0,103000.0,0.3752]
[1747275524612,0.1941559,103010.0,103000.0,0.3593]
[1747275526727,0.1941559,103010.0,103000.0,0.343]
[1747275527788,0.3232653,103010.0,103000.0,0.003]
[1747275528267,0.3815453,103010.0,103000.0,0.003]
[1747275530803,0.3815453,103010.0,103000.0,0.001]
[1747275531174,0.2453123,102990.0,102980.0,0.01556099]
[1747275531403,0.3426217,102990.0,102980.0,0.01556099]
[1747275532588,0.3426217,102990.0,102980.0,0.01756099]
[1747275533339,0.3426217,102990.0,102980.0,0.02056099]
[1747275535925,0.3426217,102990.0,102980.0,0.02056099]
[1747275536787,0.3426217,102990.0,102980.0,0.01756099]
[1747275537027,0.3426217,102990.0,102980.0,0.01856099]
[1747275537831,0.3426217,102990.0,102980.0,0.01656099]
[1747275538031,0.3426217,102990.0,102980.0,0.01756099]
[1747275545966,0.4009017,102990.0,102980.0,0.01756099]
[1747275546821,0.3426217,102990.0,102980.0,0.01756099]
[1747275549989,0.3109217,102990.0,102980.0,0.01756099]
[1747275550450,0.3109217,102990.0,102980.0,0.04826099]
[1747275552771,0.2039031,102990.0,102980.0,0.04826099]
[1747275558086,0.2039031,102990.0,102980.0,0.24441534]
[1747275558290,0.2136123,102990.0,102980.0,0.26189412]
[1747275558493,0.2136123,102990.0,102980.0,0.25218388]
[1747275558912,0.2039031,102990.0,102980.0,0.04826099]
[1747275561159,0.2039031,102990.0,102980.0,0.03316099]
[1747275563114,0.2039031,102990.0,102980.0,0.04916099]
[1747275565110,0.2039031,102990.0,102980.0,0.01756099]
[1747275565311,0.3321125,102990.0,102980.0,0.01756099]
[1747275570866,0.3012125,102990.0,102980.0,0.01756099]
[1747275572287,0.3012125,102990.0,102980.0,0.03316099]
[1747275573137,0.3012125,102990.0,102980.0,0.04846099]
[1747275574611,0.3012125,102990.0,102980.0,0.03316099]
[1747275574831,0.3012125,102990.0,102980.0,0.01756099]
[1747275579112,0.3012125,102990.0,102980.0,0.03296099]
[1747275580985,0.3012125,102990.0,102980.0,0.04956099]
[1747275581449,0.3012125,102990.0,102980.0,0.05927161]
[1747275581863,0.3012125,102990.0,102980.0,0.04956099]
[1747275585479,0.3012125,102990.0,102980.0,0.01756099]
[1747275586321,0.38617285,102990.0,102980.0,0.01756099]
[1747275586702,0.3916925,102990.0,102980.0,0.01756099]
[1747275591254,0.3334125,102990.0,102980.0,0.01756099]
[1747275594703,0.3334125,102990.0,102980.0,0.02737149]
[1747275597830,0.3172125,102990.0,102980.0,0.02737149]
[1747275598384,0.3012125,102990.0,102980.0,0.02737149]
[1747275598819,0.3012125,102990.0,102980.0,0.04327149]
[1747275598975,0.3012125,102990.0,102980.0,0.05887149]
[1747275600450,0.2039031,102990.0,102980.0,0.06081351]
[1747275600660,0.19419361,102990.0,102980.0,0.06081351]
[1747275601607,0.19419361,102990.0,102980.0,0.05887149]
[1747275606496,0.19419361,102990.0,102980.0,0.06081341]
[1747275606923,0.19419361,102990.0,102980.0,0.05887149]
[1747275612465,0.19419361,102990.0,102980.0,0.06081341]
[1747275612675,0.19419361,102990.0,102980.0,0.05887149]
[1747275618941,0.19419361,102990.0,102980.0,0.04327149]
[1747275620605,0.19419361,102990.0,102980.0,0.02737149]
[1747275623177,0.19419361,102990.0,102980.0,0.04327149]
[1747275626031,0.19419361,102990.0,102980.0,0.02737149]
[1747275627559,0.20939361,102990.0,102980.0,0.02737149]
[1747275627750,0.19419361,102990.0,102980.0,0.02737149]
[1747275633399,0.20959361,102990.0,102980.0,0.02737149]
[1747275633818,0.19419361,102990.0,102980.0,0.02737149]
[1747275637498,0.19419361,102990.0,102980.0,0.0458134]
[1747275637939,0.19419361,102990.0,102980.0,0.0511029]
[1747275642173,0.19419361,102990.0,102980.0,0.0360029]
[1747275649064,0.19419361,102990.0,102980.0,0.0522029]
[1747275649289,0.21361173,102990.0,102980.0,0.61843506]
[1747275649478,0.22332122,102990.0,102980.0,0.61843506]
[1747275650069,0.22332122,102990.0,102980.0,0.61743506]
[1747275650284,0.2136123,102990.0,102980.0,0.60672482]
[1747275650496,0.2136123,102990.0,102980.0,0.61943516]
[1747275650713,0.2136123,102990.0,102980.0,0.62143525]
[1747275650927,0.2039031,102990.0,102980.0,0.62143525]
[1747275653370,0.2039031,102990.0,102980.0,0.63114559]
[1747275654428,0.2039031,102990.0,102980.0,0.64085583]
[1747275654829,0.2039031,102990.0,102980.0,0.63114559]
[1747275656235,0.2039031,102990.0,102980.0,0.62143525]
[1747275656866,0.2039031,102990.0,102980.0,0.63114549]
[1747275657923,0.19419361,102990.0,102980.0,0.36056099]
[1747275658100,0.19419361,102990.0,102980.0,0.56448407]
[1747275658333,0.19419361,102990.0,102980.0,0.37027161]
[1747275658751,0.19419361,102990.0,102980.0,0.56448407]
[1747275659130,0.19419361,102990.0,102980.0,0.5741945]
[1747275660201,0.19419361,102990.0,102980.0,0.59930474]
[1747275660608,0.19419361,102990.0,102980.0,0.61490474]
[1747275661244,0.00970949,102990.0,102980.0,0.62461489]
[1747275661465,0.19419098,103000.0,102990.0,0.54390319]
[1747275661668,0.19419098,103000.0,102990.0,0.5605031]
[1747275661874,0.19419098,103000.0,102990.0,0.57021249]
[1747275662730,0.19419098,103000.0,102990.0,0.57121249]
[1747275664201,0.19419098,103000.0,102990.0,0.5615031]
[1747275664622,0.19419098,103000.0,102990.0,0.5449031]
[1747275665471,0.19419098,103000.0,102990.0,0.55461249]
[1747275668310,0.19419098,103000.0,102990.0,0.21461249]
[1747275669300,0.19419098,103000.0,102990.0,0.55461249]
[1747275669481,0.19419098,103000.0,102990.0,0.56432179]
[1747275670031,0.00970845,103000.0,102990.0,0.58373991]
[1747275670237,0.2264559,103010.0,103000.0,0.20388339]
[1747275670238,0.1941559,103010.0,103000.0,0.20388339]
[1747275670447,0.1941559,103010.0,103000.0,0.21359193]
[1747275670660,0.1941559,103010.0,103000.0,0.23940038]
[1747275671307,0.20386369,103010.0,103000.0,0.24910874]
[1747275671640,0.2135712,103010.0,103000.0,0.23940038]
[1747275671860,0.2135712,103010.0,103000.0,0.24910864]
[1747275672138,0.2135712,103010.0,103000.0,0.23940038]
[1747275672338,0.2135712,103010.0,103000.0,0.24910864]
[1747275672553,0.22563706,103020.0,103010.0,0.2038635]
[1747275672554,0.2135501,103020.0,103010.0,0.2038635]
[1747275672763,0.20384381,103020.0,103000.0,0.60033146]
[1747275672975,0.20384381,103020.0,103010.0,0.00194134]
[1747275673190,0.01941501,103010.0,103000.0,0.61004057]
[1747275673399,0.02912252,103010.0,103000.0,0.61004057]
[1747275673827,0.22327842,103010.0,103000.0,0.61004057]
[1747275674281,0.22327842,103010.0,103000.0,0.84004057]
[1747275674496,0.02912186,103010.0,103000.0,0.84959649]
[1747275674727,0.03882946,103010.0,103000.0,0.85930456]
[1747275674946,0.04853716,103010.0,103000.0,0.85930456]
[1747275675163,0.04853716,103010.0,103000.0,0.86130456]
[1747275675352,0.04853716,103010.0,103000.0,0.85930456]
[1747275675552,0.04853716,103010.0,103000.0,0.86330456]
[1747275677884,0.20384363,103020.0,103010.0,0.21357082]
[1747275678093,0.22325657,103020.0,103010.0,0.1941559]
[1747275678349,0.21355029,103020.0,103010.0,0.20386369]
[1747275679779,0.21355029,103020.0,103010.0,0.21357139]
[1747275680386,0.20384372,103020.0,103000.0,1.25098757]
[1747275680595,0.23524372,103020.0,103000.0,1.25098757]
[1747275681526,0.00970751,103010.0,103000.0,1.25298757]
[1747275681762,0.01941511,103010.0,103000.0,1.25298757]
[1747275682004,0.01941511,103010.0,103000.0,1.25498757]
[1747275682446,0.01941511,103010.0,103000.0,1.25298757]
[1747275682671,0.01941511,103010.0,103000.0,1.25098757]
[1747275682869,0.02912252,103010.0,103000.0,1.25298757]
[1747275683138,0.02912252,103010.0,103000.0,1.25498757]
[1747275683837,0.03882974,103010.0,103000.0,1.25498757]
[1747275684954,0.04853668,103010.0,103000.0,1.25498757]
[1747275686529,0.03882908,103010.0,103000.0,1.25498757]
[1747275686770,0.01941416,103010.0,103000.0,1.25498757]
[1747275686991,0.2329637,103020.0,103010.0,0.57937842]
[1747275687668,0.02911979,103020.0,103010.0,0.58908555]
[1747275688158,0.03882202,103030.0,103020.0,0.23296295]
[1747275688384,0.22323498,103030.0,103020.0,0.21355048]
[1747275688831,0.21352964,103030.0,103020.0,0.21355048]
[1747275689052,0.21352964,103030.0,103020.0,0.21355066]
[1747275689270,0.20382402,103030.0,103020.0,0.21355066]
[1747275689461,0.20430713,103030.0,103020.0,0.21355066]
[1747275689661,0.20430713,103030.0,103020.0,0.22325732]
[1747275689897,0.22371782,103030.0,103020.0,0.57296379]
[1747275690197,0.23342363,103030.0,103020.0,0.60586379]
[1747275690410,0.03930542,103030.0,103020.0,0.61557007]
[1747275690625,0.04901133,103030.0,103020.0,0.61557007]
[1747275691327,0.23342429,103030.0,103020.0,0.60586379]
[1747275691788,0.23342429,103030.0,103020.0,0.83586379]
[1747275692012,0.02960017,103030.0,103020.0,0.84556998]
[1747275692240,0.03930608,103030.0,103020.0,0.8455696]
[1747275692464,0.03930608,103030.0,103020.0,0.86011045]
[1747275693336,0.03930608,103030.0,103020.0,0.84371045]
[1747275693563,0.23342429,103030.0,103020.0,0.84371045]
[1747275694513,0.01989436,103030.0,103020.0,0.85940989]
[1747275695431,0.01989389,103030.0,103020.0,0.85940989]
[1747275696308,0.02959961,103030.0,103020.0,0.86040989]
[1747275697214,0.02959961,103030.0,103020.0,0.86140989]
[1747275697426,0.02959961,103030.0,103020.0,0.86358989]
[1747275698111,0.02959961,103030.0,103020.0,0.8538837]
[1747275698333,0.24511257,103030.0,103020.0,0.34418]
[1747275703101,0.24511257,103030.0,103020.0,0.53914]
[1747275703328,0.24511257,103030.0,103020.0,0.34418]
[1747275703752,0.24511257,103030.0,103020.0,0.53914]
[1747275705922,0.24511257,103030.0,103020.0,0.34418]
[1747275706135,0.24511257,103030.0,103020.0,0.5391]
[1747275707391,0.24521363,103030.0,103020.0,0.5391]
[1747275707613,0.24521363,103030.0,103020.0,0.34418]
[1747275708453,0.24511257,103030.0,103020.0,0.34407894]
[1747275713789,0.23540704,103030.0,103020.0,0.34407894]
[1747275727234,0.22010704,103030.0,103020.0,0.34407894]
[1747275728289,0.20430704,103030.0,103020.0,0.54792285]
[1747275728533,0.01989426,103030.0,103020.0,0.99666226]
[1747275728764,0.01989369,103030.0,103020.0,0.99666226]
[1747275728984,0.01989369,103030.0,103020.0,1.01120311]